Department Family,Date Paid,Expense Type,Expense Area,Supplier,Transaction Number,Amount,Vat Inclusive
Crown Prosecution Service ,02/11/22,Crown Court Very High Cost Cases Full Scheme,North West Complex Casework Unit,Harrington Street Chambers,1134109/MCLS14,"45,242.00",Y
Crown Prosecution Service ,02/11/22,Professional subscriptions and memberships,Operational Change,Crimeline Training Ltd Wigan,17454,"42,856.80",Y
Crown Prosecution Service ,02/11/22,Crown Court Graduated Fee Scheme,East Midlands Crown Court Section,1 High Pavement Chambers,276199 OP Blaze AP1,"47,187.48",Y
Crown Prosecution Service ,02/11/22,Crown Court Graduated Fee Scheme,London North Complex Casework Unit,QEB Hollis Whiteman Chambers,CA 109971 A,"29,370.60",Y
Crown Prosecution Service ,02/11/22,Crown Court Graduated Fee Scheme,London South Crown Court Unit,QEB Hollis Whiteman Chambers,EBKC 110489 A,"63,580.20",Y
Crown Prosecution Service ,02/11/22,IT services,DTS Programme Project Cost,FlyForm LTD Cardiff,INV-11021,"52,124.40",Y
Crown Prosecution Service ,02/11/22,IT services,DTS Programme Project Cost,FlyForm LTD Cardiff,INV-11044,"24,395.99",
Crown Prosecution Service ,02/11/22,Recoverable VAT control,Balance Sheet,FlyForm LTD Cardiff,INV-11044,"4,879.21",Y
Crown Prosecution Service ,02/11/22,Recoverable VAT control,Balance Sheet,FlyForm LTD Cardiff,INV-11062,"4,879.21",Y
Crown Prosecution Service ,02/11/22,IT services,DTS Programme Project Cost,FlyForm LTD Cardiff,INV-11062,"24,395.99",
Crown Prosecution Service ,02/11/22,Professional subscriptions and memberships,East of England Area Business Centre,Solicitors Regulation Authority Birmingham,INV200726408,"30,483.00",
Crown Prosecution Service ,02/11/22,Crown Court Graduated Fee Scheme,London South Crown Court Unit,QEB Hollis Whiteman Chambers,KR 110489 A,"31,786.80",Y
Crown Prosecution Service ,02/11/22,Crown Court Graduated Fee Scheme,London North Complex Casework Unit,QEB Hollis Whiteman Chambers,PEKC 111699 A,"35,776.56",Y
Crown Prosecution Service ,02/11/22,Other Staff Costs,Other Corporate Admin Payments,Reward Gateway (UK) Ltd,UK068899SI,"30,000.00",
Crown Prosecution Service ,04/11/22,Crown Court Very High Cost Cases Full Scheme,SEOC Team 2,5 Paper Buildings,101175/JMC2,"32,720.40",Y
Crown Prosecution Service ,04/11/22,Crown Court Very High Cost Cases Full Scheme,RWD North Unit,Foundry Chambers (9-12 Bell Yard),197757/JWA,"55,660.36",Y
Crown Prosecution Service ,04/11/22,Apprenticeship Levy payments Permanent,Other Corporate Admin Payments,HM Revenue and Customs,948PB00021422307,"9,042.42",
Crown Prosecution Service ,04/11/22,Apprenticeship Levy payments Permanent,Other Corporate Programme Payments,HM Revenue and Customs,948PB00021422307,"141,664.58",
Crown Prosecution Service ,04/11/22,General Professional Services,Strategy and Policy,Reed Talent Solutions London,R41021003M,"115,236.37",Y
Crown Prosecution Service ,07/11/22,Presentational Equipment,Mersey Cheshire Complex Casework Unit,Evidential Ltd Manchester,0000000685,"39,930.00",Y
Crown Prosecution Service ,07/11/22,Crown Court Graduated Fee Scheme,Thames and Chiltern Complex Casework Unit,23 Essex Street Chambers,178895-SAM-TRIAL-1,"44,247.30",Y
Crown Prosecution Service ,07/11/22,Crown Court Graduated Fee Scheme,Thames and Chiltern Complex Casework Unit,23 Essex Street Chambers,178895-SQ-TRIAL-1,"29,595.36",Y
Crown Prosecution Service ,07/11/22,Crown Court Graduated Fee Scheme,Mersey Cheshire Crown Court Unit,Atlantic Chambers,359265/JBKC,"25,222.20",Y
Crown Prosecution Service ,07/11/22,Crown Court Graduated Fee Scheme,Thames Chiltern Crown Court Unit,Church Court Chambers,74451 BAKC1,"34,490.64",Y
Crown Prosecution Service ,07/11/22,Salaries Secondments Admin,Court Business Unit,Mayor's Office for Policing and Crime,9411042601,"48,925.74",Y
Crown Prosecution Service ,07/11/22,Crown Court Graduated Fee Scheme,London North Complex Casework Unit,5 King's Bench Walk,DRKC174590.T2,"52,611.00",Y
Crown Prosecution Service ,09/11/22,Crown Court Very High Cost Cases Full Scheme,SEOC Team 1,Foundry Chambers (9-12 Bell Yard),197922/MC,"132,920.58",Y
Crown Prosecution Service ,09/11/22,Crown Court Graduated Fee Scheme,East Midlands Crown Court Section,1 High Pavement Chambers,276199 Op Blaze EH,"29,232.84",Y
Crown Prosecution Service ,09/11/22,Recoverable VAT control,Balance Sheet,WIPRO Holdings London,5000153921,"21,325.30",Y
Crown Prosecution Service ,09/11/22,IT services,End User Computing Contract,WIPRO Holdings London,5000153921,"106,626.50",
Crown Prosecution Service ,09/11/22,External legal advice - Civil litigation,Other Corporate Programme Payments,Government Legal Department,518199,"106,427.59",Y
Crown Prosecution Service ,09/11/22,IT services,Other IT costs,Lumen Technologies UK Ltd,616326211/1113872,"45,600.97",Y
Crown Prosecution Service ,09/11/22,IT services,PSN Connectivity Contract,Lumen Technologies UK Ltd,616329023/1112121,"56,535.42",
Crown Prosecution Service ,09/11/22,Recoverable VAT control,Balance Sheet,Lumen Technologies UK Ltd,616329023/1112121,"11,307.08",Y
Crown Prosecution Service ,09/11/22,Recoverable VAT control,Balance Sheet,Lumen Technologies UK Ltd,616329224/1114207,"23,527.96",Y
Crown Prosecution Service ,09/11/22,IT services,PSN Services Contract,Lumen Technologies UK Ltd,616329224/1114207,"117,639.82",
Crown Prosecution Service ,09/11/22,Crown Court Very High Cost Cases Full Scheme,North West RASSO Unit,15 Winckley Square Chambers,BLW 262287*10,"25,655.00",Y
Crown Prosecution Service ,09/11/22,IT services,DTS Programme Project Cost,CGI IT UK Ltd,GB014092266,"25,602.00",Y
Crown Prosecution Service ,09/11/22,Other managed/contractor services,DTS Programme Project Cost,Equal Experts London,INV-11344,"95,442.00",Y
Crown Prosecution Service ,09/11/22,Other managed/contractor services,DTS Programme Project Cost,Equal Experts London,INV-11345,"49,554.00",Y
Crown Prosecution Service ,09/11/22,Crown Court Graduated Fee Scheme,London North Complex Casework Unit,5 King's Bench Walk,WD174590.T2,"26,306.40",Y
Crown Prosecution Service ,10/11/22,IT services,DTS Programme Project Cost,FlyForm LTD Cardiff,INV-11068,"54,522.00",Y
Crown Prosecution Service ,10/11/22,Other publicity and media costs,Press Office,Vuelio London,INV52951,"68,400.00",Y
Crown Prosecution Service ,11/11/22,Facilities management,Estate and FM: Programme,Government Property Agency London,00000001/21873,"25,683.80",
Crown Prosecution Service ,11/11/22,Recoverable VAT control,Balance Sheet,Government Property Agency London,00000001/21873,"5,136.76",Y
Crown Prosecution Service ,11/11/22,Crown Court Graduated Fee Scheme,London North Complex Casework Unit,2 Hare Court Chambers -Chambers of Orlando Pownall,115937(!!),"47,055.00",Y
Crown Prosecution Service ,11/11/22,External legal advice - Civil litigation,Other Corporate Programme Payments,Government Legal Department,518374,"109,341.60",Y
Crown Prosecution Service ,14/11/22,Crown Court Graduated Fee Scheme,London North Complex Casework Unit,5 Paper Buildings,119245/DH,"37,557.00",Y
Crown Prosecution Service ,14/11/22,FCO platform charges excluding leases,Intl Liaison Prosecutors,"Foreign, Commonwealth and Development Office",20000618,969.00,
Crown Prosecution Service ,14/11/22,Overseas Residential accommodation,Intl Liaison Prosecutors,"Foreign, Commonwealth and Development Office",20000618,"13,725.00",
Crown Prosecution Service ,14/11/22,FCO platform charges excluding leases,Intl External Funding,"Foreign, Commonwealth and Development Office",20000618,"5,125.00",
Crown Prosecution Service ,14/11/22,Overseas Residential accommodation,Intl External Funding,"Foreign, Commonwealth and Development Office",20000618,"4,600.00",
Crown Prosecution Service ,14/11/22,Overseas Residential accommodation,Intl External Funding,"Foreign, Commonwealth and Development Office",20000618,"4,907.75",
Crown Prosecution Service ,14/11/22,FCO platform charges excluding leases,Intl Liaison Prosecutors,"Foreign, Commonwealth and Development Office",20000618,130.50,
Crown Prosecution Service ,14/11/22,Overseas Residential accommodation,Intl External Funding,"Foreign, Commonwealth and Development Office",20000618,"4,890.75",
Crown Prosecution Service ,14/11/22,FCO platform charges excluding leases,Intl Liaison Prosecutors,"Foreign, Commonwealth and Development Office",20000618,"11,775.00",
Crown Prosecution Service ,14/11/22,FCO platform charges excluding leases,Intl External Funding,"Foreign, Commonwealth and Development Office",20000618,"9,200.00",
Crown Prosecution Service ,14/11/22,FCO platform charges excluding leases,Intl Liaison Prosecutors,"Foreign, Commonwealth and Development Office",20000618,"14,400.00",
Crown Prosecution Service ,14/11/22,FCO platform charges excluding leases,Intl External Funding,"Foreign, Commonwealth and Development Office",20000618,"6,888.50",
Crown Prosecution Service ,14/11/22,FCO platform charges excluding leases,Intl Liaison Prosecutors,"Foreign, Commonwealth and Development Office",20000618,"6,000.00",
Crown Prosecution Service ,14/11/22,Overseas Residential accommodation,Intl External Funding,"Foreign, Commonwealth and Development Office",20000618,"5,575.00",
Crown Prosecution Service ,14/11/22,Overseas Residential accommodation,Intl Liaison Prosecutors,"Foreign, Commonwealth and Development Office",20000618,"4,934.75",
Crown Prosecution Service ,14/11/22,Overseas Residential accommodation,Intl External Funding,"Foreign, Commonwealth and Development Office",20000618,"7,125.00",
Crown Prosecution Service ,14/11/22,FCO platform charges excluding leases,Intl External Funding,"Foreign, Commonwealth and Development Office",20000618,"5,625.00",
Crown Prosecution Service ,14/11/22,Overseas Residential accommodation,Intl External Funding,"Foreign, Commonwealth and Development Office",20000618,"6,375.00",
Crown Prosecution Service ,14/11/22,Overseas Residential accommodation,Intl External Funding,"Foreign, Commonwealth and Development Office",20000618,"5,750.00",
Crown Prosecution Service ,14/11/22,Overseas Residential accommodation,Intl Internal Funding,"Foreign, Commonwealth and Development Office",20000618,"7,543.50",
Crown Prosecution Service ,14/11/22,FCO platform charges excluding leases,Intl Liaison Prosecutors,"Foreign, Commonwealth and Development Office",20000618,"20,246.50",
Crown Prosecution Service ,14/11/22,Overseas Residential accommodation,Intl Liaison Prosecutors,"Foreign, Commonwealth and Development Office",20000618,"12,079.11",
Crown Prosecution Service ,14/11/22,Overseas Residential accommodation,Intl External Funding,"Foreign, Commonwealth and Development Office",20000618,"4,900.25",
Crown Prosecution Service ,14/11/22,Overseas Residential accommodation,Intl Liaison Prosecutors,"Foreign, Commonwealth and Development Office",20000618,"11,575.00",
Crown Prosecution Service ,14/11/22,FCO platform charges excluding leases,Intl External Funding,"Foreign, Commonwealth and Development Office",20000618,"16,400.00",
Crown Prosecution Service ,14/11/22,Overseas Residential accommodation,Intl Liaison Prosecutors,"Foreign, Commonwealth and Development Office",20000618,"9,575.00",
Crown Prosecution Service ,14/11/22,Overseas Residential accommodation,Intl Liaison Prosecutors,"Foreign, Commonwealth and Development Office",20000618,"6,700.00",
Crown Prosecution Service ,14/11/22,FCO platform charges excluding leases,Intl Liaison Prosecutors,"Foreign, Commonwealth and Development Office",20000618,"10,286.50",
Crown Prosecution Service ,14/11/22,FCO platform charges excluding leases,Intl External Funding,"Foreign, Commonwealth and Development Office",20000618,"10,350.00",
Crown Prosecution Service ,14/11/22,FCO platform charges excluding leases,Intl External Funding,"Foreign, Commonwealth and Development Office",20000618,"9,750.00",
Crown Prosecution Service ,14/11/22,FCO platform charges excluding leases,Intl External Funding,"Foreign, Commonwealth and Development Office",20000618,"9,100.00",
Crown Prosecution Service ,14/11/22,FCO platform charges excluding leases,Intl Liaison Prosecutors,"Foreign, Commonwealth and Development Office",20000618,"4,366.00",
Crown Prosecution Service ,14/11/22,Overseas Residential accommodation,Intl External Funding,"Foreign, Commonwealth and Development Office",20000618,"4,800.00",
Crown Prosecution Service ,14/11/22,FCO platform charges excluding leases,Intl External Funding,"Foreign, Commonwealth and Development Office",20000618,"7,325.00",
Crown Prosecution Service ,14/11/22,FCO platform charges excluding leases,Intl Internal Funding,"Foreign, Commonwealth and Development Office",20000618,"48,763.25",
Crown Prosecution Service ,14/11/22,Recoverable VAT control,Balance Sheet,Accenture (UK) Ltd London,3003579881,"18,875.00",Y
Crown Prosecution Service ,14/11/22,IT services,DTS Programme Project Cost,Accenture (UK) Ltd London,3003579881,"94,375.00",
Crown Prosecution Service ,14/11/22,Recoverable VAT control,Balance Sheet,Oracle Corporation UK Ltd,460055914,"18,640.35",Y
Crown Prosecution Service ,14/11/22,IT non capital software licences,Legal Reference and ICT Licenses,Oracle Corporation UK Ltd,460055914,"93,201.77",
Crown Prosecution Service ,14/11/22,IT non capital software licences,Legal Reference and ICT Licenses,Oracle Corporation UK Ltd,460055916,"157,252.25",
Crown Prosecution Service ,14/11/22,Recoverable VAT control,Balance Sheet,Oracle Corporation UK Ltd,460055916,"31,450.45",Y
Crown Prosecution Service ,14/11/22,Data Communications,PSN Services Contract,Lumen Technologies UK Ltd,616387560/1116221,"32,963.52",Y
Crown Prosecution Service ,14/11/22,IT services,DTS Programme Project Cost,Lumen Technologies UK Ltd,616427726/1116227,"37,821.28",Y
Crown Prosecution Service ,14/11/22,IT services,Estate and FM: Programme,Lumen Technologies UK Ltd,616427726/1116227,"26,287.38",Y
Crown Prosecution Service ,14/11/22,IT services,PSN Services Contract,Lumen Technologies UK Ltd,616427726/1116227,"3,843.62",Y
Crown Prosecution Service ,14/11/22,Other managed/contractor services,Central Legal Training Team,Ernst & Young LLP London,GB01G000352653,"25,627.20",Y
Crown Prosecution Service ,14/11/22,IT services,DTS Programme Project Cost,eSynergy Solutions Ltd,INV00000848,"29,880.00",Y
Crown Prosecution Service ,14/11/22,IT services,DTS Programme Project Cost,eSynergy Solutions Ltd,INV00000858,"51,660.00",Y
Crown Prosecution Service ,14/11/22,IT services,DTS Programme Project Cost,eSynergy Solutions Ltd,INV00000859,"35,640.00",Y
Crown Prosecution Service ,14/11/22,IT services,DTS Programme Project Cost,eSynergy Solutions Ltd,INV00000860,"101,022.86",Y
Crown Prosecution Service ,14/11/22,IT services,DTS Programme Project Cost,eSynergy Solutions Ltd,INV00000861,"49,620.00",Y
Crown Prosecution Service ,14/11/22,IT services,DTS Programme Project Cost,eSynergy Solutions Ltd,INV00000875,"85,751.14",Y
Crown Prosecution Service ,15/11/22,Right of use asset clearing Buildings,Balance Sheet,Government Property Agency London,00000001/21766,"34,649.97",Y
Crown Prosecution Service ,15/11/22,Right of use asset clearing Buildings,Balance Sheet,Government Property Agency London,00000001/21767,"32,666.90",
Crown Prosecution Service ,15/11/22,Right of use asset clearing Buildings,Balance Sheet,Government Property Agency London,00000001/21768,"42,287.80",
Crown Prosecution Service ,15/11/22,Right of use asset clearing Buildings,Balance Sheet,Government Property Agency London,00000001/21769,"35,959.01",
Crown Prosecution Service ,15/11/22,Right of use asset clearing Buildings,Balance Sheet,Government Property Agency London,00000001/21770,"36,710.84",
Crown Prosecution Service ,15/11/22,Right of use asset clearing Buildings,Balance Sheet,Government Property Agency London,00000001/21771,"35,905.67",
Crown Prosecution Service ,15/11/22,Right of use asset clearing Buildings,Balance Sheet,Government Property Agency London,00000001/21783,"34,537.22",
Crown Prosecution Service ,15/11/22,Right of use asset clearing Buildings,Balance Sheet,Government Property Agency London,00000001/21785,"136,081.35",
Crown Prosecution Service ,15/11/22,New Works: non capital,Estate and FM: Administration,Government Property Agency London,00000001/21787,"28,812.76",
Crown Prosecution Service ,15/11/22,Right of use asset clearing Buildings,Balance Sheet,Government Property Agency London,00000001/21789,"28,767.86",
Crown Prosecution Service ,15/11/22,Right of use asset clearing Buildings,Balance Sheet,Government Property Agency London,00000001/21790,"47,577.98",
Crown Prosecution Service ,15/11/22,Right of use asset clearing Buildings,Balance Sheet,Government Property Agency London,00000001/21792,"459,359.76",
Crown Prosecution Service ,15/11/22,IT services,DTS Programme Project Cost,PA Consulting Services Limited,0000020195,"117,120.00",Y
Crown Prosecution Service ,15/11/22,Recoverable VAT control,Balance Sheet,Iron Mountain Ltd,0736954,"9,938.29",Y
Crown Prosecution Service ,15/11/22,File Storage,CFO Finance Operations,Iron Mountain Ltd,0736954,"49,691.45",
Crown Prosecution Service ,15/11/22,IT non capital software licences,Strategy and Policy,Smart Vision Europe Ltd London,INV-3437,"41,383.20",Y
Crown Prosecution Service ,16/11/22,Crown Court Very High Cost Cases Full Scheme,North West RASSO Unit,St Pauls Chambers Leeds,167071,"30,345.28",Y
Crown Prosecution Service ,16/11/22,Crown Court Graduated Fee Scheme,North West Crown Court Hub,Lincoln House Chambers,251410 PCR KC,"27,359.22",Y
Crown Prosecution Service ,17/11/22,Crown Court Graduated Fee Scheme,London North Complex Casework Unit,6 Kings Bench Walk- Chambers of D Fisher & D Perry,102034 JH,"59,637.00",Y
Crown Prosecution Service ,17/11/22,Crown Court Graduated Fee Scheme,London North Complex Casework Unit,2 Hare Court Chambers -Chambers of Orlando Pownall,120530,"29,816.40",Y
Crown Prosecution Service ,17/11/22,Other Expert Fees,Mersey Cheshire Complex Casework Unit,Bohin Sandie Guernsey,301022,"25,500.00",
Crown Prosecution Service ,21/11/22,Short term leases from 2 to 12 months: Property,Estate and FM: Programme,Government Property Agency London,00000001/21980,"27,602.86",
Crown Prosecution Service ,21/11/22,General Professional Services,Strategy and Policy,Reed Talent Solutions London,R41027402M,"166,722.08",Y
Crown Prosecution Service ,22/11/22,Crown Court Graduated Fee Scheme,North West Complex Casework Unit,New Park Court Chambers Leeds,366126-2/CH,"28,816.80",Y
Crown Prosecution Service ,22/11/22,Crown Court Graduated Fee Scheme,North West Complex Casework Unit,New Park Court Chambers Leeds,366126-2/STKKC,"50,638.50",Y
Crown Prosecution Service ,22/11/22,Recoverable VAT control,Balance Sheet,Oracle Corporation UK Ltd,460070838,"6,582.69",Y
Crown Prosecution Service ,22/11/22,IT non capital software licences,Legal Reference and ICT Licenses,Oracle Corporation UK Ltd,460070838,"32,913.43",
Crown Prosecution Service ,22/11/22,UK Hotels,DTUS,Clarity Travel Management,CPSHQ131122,83.00,Y
Crown Prosecution Service ,22/11/22,UK National rail travel,DID DTS Technology,Clarity Travel Management,CPSHQ131122,"1,757.30",
Crown Prosecution Service ,22/11/22,UK Hotels,DID Operational Process,Clarity Travel Management,CPSHQ131122,258.15,Y
Crown Prosecution Service ,22/11/22,UK Hotels,DID DTS Technology,Clarity Travel Management,CPSHQ131122,"1,411.01",Y
Crown Prosecution Service ,22/11/22,UK Hotels,PF HR Operations,Clarity Travel Management,CPSHQ131122,148.00,Y
Crown Prosecution Service ,22/11/22,UK Hotels,PF HR Systems and Information,Clarity Travel Management,CPSHQ131122,538.20,Y
Crown Prosecution Service ,22/11/22,UK Hotels,Court Business Unit,Clarity Travel Management,CPSHQ131122,68.01,Y
Crown Prosecution Service ,22/11/22,UK Hotels,PF HR Business Partnering,Clarity Travel Management,CPSHQ131122,125.11,Y
Crown Prosecution Service ,22/11/22,UK Hotels,Permanent Transfer Costs,Clarity Travel Management,CPSHQ131122,287.01,Y
Crown Prosecution Service ,22/11/22,UK Hotels,Operational Change,Clarity Travel Management,CPSHQ131122,395.82,Y
Crown Prosecution Service ,22/11/22,UK Hotels,DID Security and Information,Clarity Travel Management,CPSHQ131122,744.27,Y
Crown Prosecution Service ,22/11/22,UK Hotels,Central Legal Training Team,Clarity Travel Management,CPSHQ131122,117.00,Y
Crown Prosecution Service ,22/11/22,UK Hotels,CFO Commercial,Clarity Travel Management,CPSHQ131122,372.90,Y
Crown Prosecution Service ,22/11/22,UK Hotels,Chief Finance Officer,Clarity Travel Management,CPSHQ131122,94.80,Y
Crown Prosecution Service ,22/11/22,UK Hotels,DID DTS Change,Clarity Travel Management,CPSHQ131122,"3,071.80",Y
Crown Prosecution Service ,22/11/22,UK Hotels,Strategy and Policy,Clarity Travel Management,CPSHQ131122,196.55,Y
Crown Prosecution Service ,22/11/22,UK Hotels,PF HR Business Management,Clarity Travel Management,CPSHQ131122,71.01,Y
Crown Prosecution Service ,22/11/22,UK National rail travel,Court Business Unit,Clarity Travel Management,CPSHQ131122,909.50,
Crown Prosecution Service ,22/11/22,UK National rail travel,Strategy and Policy,Clarity Travel Management,CPSHQ131122,"1,710.20",
Crown Prosecution Service ,22/11/22,UK National rail travel,Corporate Communication,Clarity Travel Management,CPSHQ131122,261.70,
Crown Prosecution Service ,22/11/22,UK National rail travel,PF HR Operations,Clarity Travel Management,CPSHQ131122,"1,843.65",
Crown Prosecution Service ,22/11/22,UK National rail travel,Private Office,Clarity Travel Management,CPSHQ131122,337.20,
Crown Prosecution Service ,22/11/22,UK National rail travel,Operational Performance,Clarity Travel Management,CPSHQ131122,"1,207.00",
Crown Prosecution Service ,22/11/22,UK National rail travel,CFO Financial Reporting,Clarity Travel Management,CPSHQ131122,146.30,
Crown Prosecution Service ,22/11/22,UK National rail travel,DID Operational Process,Clarity Travel Management,CPSHQ131122,"1,995.80",
Crown Prosecution Service ,22/11/22,UK National rail travel,PF People and Business Change,Clarity Travel Management,CPSHQ131122,"1,514.60",
Crown Prosecution Service ,22/11/22,UK National rail travel,Director of Legal Services,Clarity Travel Management,CPSHQ131122,277.30,
Crown Prosecution Service ,22/11/22,UK National rail travel,DID DTS Change,Clarity Travel Management,CPSHQ131122,"2,177.00",
Crown Prosecution Service ,22/11/22,UK National rail travel,Central Operational Training,Clarity Travel Management,CPSHQ131122,581.80,
Crown Prosecution Service ,22/11/22,UK National rail travel,PF Learning and Development General,Clarity Travel Management,CPSHQ131122,925.70,
Crown Prosecution Service ,22/11/22,UK National rail travel,CFO Commercial,Clarity Travel Management,CPSHQ131122,963.80,
Crown Prosecution Service ,22/11/22,UK National rail travel,Operational Change,Clarity Travel Management,CPSHQ131122,"1,132.55",
Crown Prosecution Service ,22/11/22,UK National rail travel,CFO Finance Operations,Clarity Travel Management,CPSHQ131122,522.40,
Crown Prosecution Service ,22/11/22,UK National rail travel,CFO Fin System Change and Costings,Clarity Travel Management,CPSHQ131122,250.40,
Crown Prosecution Service ,22/11/22,UK National rail travel,PF Analytics and Workforce Plan,Clarity Travel Management,CPSHQ131122,285.10,
Crown Prosecution Service ,22/11/22,UK National rail travel,Compliance and Assurance,Clarity Travel Management,CPSHQ131122,"2,602.50",
Crown Prosecution Service ,22/11/22,UK National rail travel,DTUS,Clarity Travel Management,CPSHQ131122,81.80,
Crown Prosecution Service ,22/11/22,UK National rail travel,PF Resourcing,Clarity Travel Management,CPSHQ131122,649.70,
Crown Prosecution Service ,22/11/22,UK National rail travel,PF HR Systems and Information,Clarity Travel Management,CPSHQ131122,396.20,
Crown Prosecution Service ,22/11/22,UK National rail travel,DID Security and Information,Clarity Travel Management,CPSHQ131122,"2,850.10",
Crown Prosecution Service ,22/11/22,UK National rail travel,Central Legal Training Team,Clarity Travel Management,CPSHQ131122,"1,099.70",
Crown Prosecution Service ,22/11/22,UK National rail travel,CFO Estates,Clarity Travel Management,CPSHQ131122,438.20,
Crown Prosecution Service ,22/11/22,UK National rail travel,Chief Finance Officer,Clarity Travel Management,CPSHQ131122,"1,180.70",
Crown Prosecution Service ,22/11/22,UK National rail travel,Permanent Transfer Costs,Clarity Travel Management,CPSHQ131122,365.60,
Crown Prosecution Service ,22/11/22,UK National rail travel,Press Office,Clarity Travel Management,CPSHQ131122,345.10,
Crown Prosecution Service ,22/11/22,UK National rail travel,Operational Business Support,Clarity Travel Management,CPSHQ131122,"3,491.40",
Crown Prosecution Service ,22/11/22,UK National rail travel,DID Central Leadership Team,Clarity Travel Management,CPSHQ131122,"1,018.85",
Crown Prosecution Service ,22/11/22,UK Hotels,Private Office,Clarity Travel Management,CPSHQ131122,495.94,Y
Crown Prosecution Service ,23/11/22,Other Staff Costs,CFO Finance Operations,Edenred,INV26982975,"6,054.20",
Crown Prosecution Service ,23/11/22,Salary sacrifice suspense,Balance Sheet,Edenred,INV26982975,"19,440.72",
Crown Prosecution Service ,24/11/22,Recoverable VAT control,Balance Sheet,Government Property Agency London,00000001/22380,"13,906.81",Y
Crown Prosecution Service ,24/11/22,Reactive Maintenance,Estate and FM: Programme,Government Property Agency London,00000001/22380,"62,264.00",
Crown Prosecution Service ,24/11/22,Reactive Maintenance,Estate and FM: Administration,Government Property Agency London,00000001/22380,"7,270.06",
Crown Prosecution Service ,24/11/22,IT services,DTS Programme Project Cost,PA Consulting Services Limited,0000020433,"31,440.00",Y
Crown Prosecution Service ,24/11/22,Advice/PreSending Very High Cost Cases Full Scheme,Mersey Cheshire Complex Casework Unit,Harrington Street Chambers,1096572/SDS34,"26,160.30",Y
Crown Prosecution Service ,24/11/22,IT services,End User Computing Contract,WIPRO Holdings London,5000165517,"106,626.50",
Crown Prosecution Service ,24/11/22,Recoverable VAT control,Balance Sheet,WIPRO Holdings London,5000165517,"21,325.30",Y
Crown Prosecution Service ,24/11/22,UK National rail travel,DID DTS Technology,Clarity Travel Management,CPSHQ201122,"1,611.30",
Crown Prosecution Service ,24/11/22,UK National rail travel,PF Resourcing,Clarity Travel Management,CPSHQ201122,"1,321.60",
Crown Prosecution Service ,24/11/22,UK National rail travel,PF People and Business Change,Clarity Travel Management,CPSHQ201122,"1,847.60",
Crown Prosecution Service ,24/11/22,UK National rail travel,PF HR Operations,Clarity Travel Management,CPSHQ201122,"1,613.60",
Crown Prosecution Service ,24/11/22,UK National rail travel,Operational Performance,Clarity Travel Management,CPSHQ201122,"1,027.30",
Crown Prosecution Service ,24/11/22,UK National rail travel,Court Business Unit,Clarity Travel Management,CPSHQ201122,883.20,
Crown Prosecution Service ,24/11/22,UK National rail travel,Corporate Communication,Clarity Travel Management,CPSHQ201122,500.30,
Crown Prosecution Service ,24/11/22,UK National rail travel,PF Analytics and Workforce Plan,Clarity Travel Management,CPSHQ201122,586.70,
Crown Prosecution Service ,24/11/22,UK National rail travel,Permanent Transfer Costs,Clarity Travel Management,CPSHQ201122,419.40,
Crown Prosecution Service ,24/11/22,UK Hotels,Court Business Unit,Clarity Travel Management,CPSHQ201122,322.97,Y
Crown Prosecution Service ,24/11/22,UK Hotels,CFO Finance Operations,Clarity Travel Management,CPSHQ201122,148.00,Y
Crown Prosecution Service ,24/11/22,UK Hotels,Compliance and Assurance,Clarity Travel Management,CPSHQ201122,381.27,Y
Crown Prosecution Service ,24/11/22,UK Hotels,CFO Strategic Financial Planning,Clarity Travel Management,CPSHQ201122,137.10,Y
Crown Prosecution Service ,24/11/22,UK Hotels,DID Security and Information,Clarity Travel Management,CPSHQ201122,269.00,Y
Crown Prosecution Service ,24/11/22,UK Hotels,DTUS,Clarity Travel Management,CPSHQ201122,82.00,Y
Crown Prosecution Service ,24/11/22,UK Hotels,PF Resourcing,Clarity Travel Management,CPSHQ201122,93.00,Y
Crown Prosecution Service ,24/11/22,UK Hotels,DID Operational Process,Clarity Travel Management,CPSHQ201122,"1,580.38",Y
Crown Prosecution Service ,24/11/22,UK Hotels,CFO Estates,Clarity Travel Management,CPSHQ201122,49.39,Y
Crown Prosecution Service ,24/11/22,UK Hotels,Chief Finance Officer,Clarity Travel Management,CPSHQ201122,146.30,Y
Crown Prosecution Service ,24/11/22,UK Hotels,DID Central Leadership Team,Clarity Travel Management,CPSHQ201122,715.20,Y
Crown Prosecution Service ,24/11/22,UK Hotels,PF HR Operations,Clarity Travel Management,CPSHQ201122,208.00,Y
Crown Prosecution Service ,24/11/22,UK Hotels,Operational Business Support,Clarity Travel Management,CPSHQ201122,350.80,Y
Crown Prosecution Service ,24/11/22,UK Hotels,Permanent Transfer Costs,Clarity Travel Management,CPSHQ201122,961.56,Y
Crown Prosecution Service ,24/11/22,UK Hotels,Operational Change,Clarity Travel Management,CPSHQ201122,848.34,Y
Crown Prosecution Service ,24/11/22,UK Hotels,PF Analytics and Workforce Plan,Clarity Travel Management,CPSHQ201122,152.00,Y
Crown Prosecution Service ,24/11/22,UK Hotels,PF Learning and Development General,Clarity Travel Management,CPSHQ201122,"1,108.03",Y
Crown Prosecution Service ,24/11/22,UK Hotels,Strategy and Policy,Clarity Travel Management,CPSHQ201122,602.13,Y
Crown Prosecution Service ,24/11/22,UK Hotels,CFO Financial Reporting,Clarity Travel Management,CPSHQ201122,68.00,Y
Crown Prosecution Service ,24/11/22,UK Hotels,Central Legal Training Team,Clarity Travel Management,CPSHQ201122,222.00,Y
Crown Prosecution Service ,24/11/22,UK Hotels,PF HR Business Partnering,Clarity Travel Management,CPSHQ201122,144.00,Y
Crown Prosecution Service ,24/11/22,UK Hotels,CFO Commercial,Clarity Travel Management,CPSHQ201122,468.00,Y
Crown Prosecution Service ,24/11/22,UK Hotels,DID DTS Technology,Clarity Travel Management,CPSHQ201122,"1,204.62",Y
Crown Prosecution Service ,24/11/22,UK Hotels,DID DTS Change,Clarity Travel Management,CPSHQ201122,"1,304.14",Y
Crown Prosecution Service ,24/11/22,UK Hotels,Director of Legal Services,Clarity Travel Management,CPSHQ201122,316.80,Y
Crown Prosecution Service ,24/11/22,UK Hotels,PF People and Business Change,Clarity Travel Management,CPSHQ201122,"1,012.64",Y
Crown Prosecution Service ,24/11/22,UK National rail travel,PF Learning and Development General,Clarity Travel Management,CPSHQ201122,"1,377.85",
Crown Prosecution Service ,24/11/22,UK National rail travel,DID Central Leadership Team,Clarity Travel Management,CPSHQ201122,"1,186.30",
Crown Prosecution Service ,24/11/22,UK National rail travel,Strategy and Policy,Clarity Travel Management,CPSHQ201122,"1,579.80",
Crown Prosecution Service ,24/11/22,UK National rail travel,DID DTS Change,Clarity Travel Management,CPSHQ201122,"2,510.20",
Crown Prosecution Service ,24/11/22,UK National rail travel,Operational Change,Clarity Travel Management,CPSHQ201122,"1,160.65",
Crown Prosecution Service ,24/11/22,UK National rail travel,Chief Finance Officer,Clarity Travel Management,CPSHQ201122,384.40,
Crown Prosecution Service ,24/11/22,UK National rail travel,PF HR Business Partnering,Clarity Travel Management,CPSHQ201122,"1,611.70",
Crown Prosecution Service ,24/11/22,UK National rail travel,Private Office,Clarity Travel Management,CPSHQ201122,199.60,
Crown Prosecution Service ,24/11/22,UK National rail travel,Legal Trainee Salaries,Clarity Travel Management,CPSHQ201122,197.30,
Crown Prosecution Service ,24/11/22,UK National rail travel,CFO Estates,Clarity Travel Management,CPSHQ201122,542.70,
Crown Prosecution Service ,24/11/22,UK National rail travel,CFO Commercial,Clarity Travel Management,CPSHQ201122,383.30,
Crown Prosecution Service ,24/11/22,UK National rail travel,Press Office,Clarity Travel Management,CPSHQ201122,256.80,
Crown Prosecution Service ,24/11/22,UK National rail travel,Operational Business Support,Clarity Travel Management,CPSHQ201122,"2,497.70",
Crown Prosecution Service ,24/11/22,UK National rail travel,PF HR Business Management,Clarity Travel Management,CPSHQ201122,332.20,
Crown Prosecution Service ,24/11/22,UK National rail travel,CFO Strategic Financial Planning,Clarity Travel Management,CPSHQ201122,467.10,
Crown Prosecution Service ,24/11/22,UK National rail travel,DID Operational Process,Clarity Travel Management,CPSHQ201122,145.30,
Crown Prosecution Service ,24/11/22,UK National rail travel,DID Security and Information,Clarity Travel Management,CPSHQ201122,"1,715.10",
Crown Prosecution Service ,24/11/22,UK National rail travel,Director of Legal Services,Clarity Travel Management,CPSHQ201122,"1,032.40",
Crown Prosecution Service ,24/11/22,UK National rail travel,Central Legal Training Team,Clarity Travel Management,CPSHQ201122,469.10,
Crown Prosecution Service ,24/11/22,IT services,DTS Programme Project Cost,Mobilise Cloud Services Limited London,CPSINV050,"40,059.00",Y
Crown Prosecution Service ,24/11/22,Recoverable VAT control,Balance Sheet,CGI IT UK Ltd,GB014093349,"5,637.33",Y
Crown Prosecution Service ,24/11/22,Intangibles asset purchase clearing CMS,DTS ICT Capital Expenditure,CGI IT UK Ltd,GB014093349,"28,186.63",
Crown Prosecution Service ,24/11/22,Recoverable VAT control,Balance Sheet,CGI IT UK Ltd,GB014093351,"204,957.14",Y
Crown Prosecution Service ,24/11/22,IT services,Apps and Hosting Contract,CGI IT UK Ltd,GB014093351,"1,024,785.69",
Crown Prosecution Service ,24/11/22,Recoverable VAT control,Balance Sheet,CGI IT UK Ltd,GB014093352,"61,949.05",Y
Crown Prosecution Service ,24/11/22,Intangibles asset purchase clearing CMS,DTS ICT Capital Expenditure,CGI IT UK Ltd,GB014093352,"309,745.25",
Crown Prosecution Service ,24/11/22,Recoverable VAT control,Balance Sheet,CGI IT UK Ltd,GB014093438,"228,199.40",Y
Crown Prosecution Service ,24/11/22,Intangibles asset purchase clearing CMS,DTS ICT Capital Expenditure,CGI IT UK Ltd,GB014093438,"1,140,997.00",
Crown Prosecution Service ,24/11/22,IT services,DTS Programme Project Cost,CGI IT UK Ltd,GB014093525,"30,224.80",Y
Crown Prosecution Service ,24/11/22,IT services,DTS Programme Project Cost,ACS Systems UK Limited Northampton,INV-423777,"48,564.90",Y
Crown Prosecution Service ,24/11/22,IT services,DTS Programme Project Cost,ACS Systems UK Limited Northampton,INV423828,"35,007.00",Y
Crown Prosecution Service ,24/11/22,IT services,End User Computing Contract,ACS Systems UK Limited Northampton,INV423828,"3,780.00",Y
Crown Prosecution Service ,25/11/22,Crown Court Graduated Fee Scheme,East Midlands Complex Casework Unit,Foundry Chambers (9-12 Bell Yard),193253/JM,"46,670.83",Y
Crown Prosecution Service ,25/11/22,External legal advice - HR casework,PF Litigation,Government Legal Department,519292,"26,692.97",Y
Crown Prosecution Service ,25/11/22,IT services,Service Desk Contract,CGI IT UK Ltd,GB014093410,"97,543.70",
Crown Prosecution Service ,25/11/22,Recoverable VAT control,Balance Sheet,CGI IT UK Ltd,GB014093410,"19,508.74",Y
Crown Prosecution Service ,28/11/22,Crown Court Graduated Fee Scheme,North East Crown Court Unit,Nine Bedford Row (9 Bedford Row),131863PG Debs,"37,557.24",Y
Crown Prosecution Service ,28/11/22,Crown Court Very High Cost Cases Full Scheme,SEOC Team 1,Foundry Chambers (9-12 Bell Yard),198294/MC,"52,966.00",Y
Crown Prosecution Service ,28/11/22,Crown Court Very High Cost Cases Full Scheme,SEOC Team 1,Foundry Chambers (9-12 Bell Yard),198294/PS,"25,326.00",Y
Crown Prosecution Service ,28/11/22,Recoverable VAT control,Balance Sheet,Konica Minolta Business Solutions Limited,Fleet202206,"4,695.14",Y
Crown Prosecution Service ,28/11/22,Variable lease payment expenses IT and Equipment,Print Contract,Konica Minolta Business Solutions Limited,Fleet202206,"23,475.68",
Crown Prosecution Service ,28/11/22,Recoverable VAT control,Balance Sheet,Konica Minolta Business Solutions Limited,Fleet202208,"4,795.92",Y
Crown Prosecution Service ,28/11/22,Variable lease payment expenses IT and Equipment,Print Contract,Konica Minolta Business Solutions Limited,Fleet202208,"23,979.61",
Crown Prosecution Service ,28/11/22,Variable lease payment expenses IT and Equipment,Print Contract,Konica Minolta Business Solutions Limited,Fleet202209,"37,521.00",
Crown Prosecution Service ,28/11/22,Recoverable VAT control,Balance Sheet,Konica Minolta Business Solutions Limited,Fleet202209,"7,504.20",Y
Crown Prosecution Service ,28/11/22,Crown Court Very High Cost Cases Full Scheme,East Midlands Crown Court Section,Seven Bedford Row,haversack,"40,902.70",Y
Crown Prosecution Service ,29/11/22,Admin agency staff,DID DTS Change,Alexander Mann Solutions Ltd London,2668202,"35,600.86",Y
Crown Prosecution Service ,30/11/22,Recoverable VAT control,Balance Sheet,Government Property Agency London,00000001/22488,"10,197.31",Y
Crown Prosecution Service ,30/11/22,Reactive Maintenance,Estate and FM: Programme,Government Property Agency London,00000001/22488,"50,986.57",
Crown Prosecution Service ,30/11/22,Recoverable VAT control,Balance Sheet,Government Property Agency London,00000001/22489,"10,633.17",Y
Crown Prosecution Service ,30/11/22,Reactive Maintenance,Estate and FM: Programme,Government Property Agency London,00000001/22489,"53,165.85",
Crown Prosecution Service ,30/11/22,Advice/PreSending Very High Cost Cases Full Scheme,Mersey Cheshire Complex Casework Unit,Harrington Street Chambers,1096572/NJS34,"34,205.94",Y
Crown Prosecution Service ,30/11/22,Crown Court Graduated Fee Scheme,North West Crown Court Hub,Lincoln House Chambers,251684 TS,"29,067.00",Y
Crown Prosecution Service ,30/11/22,Other publicity and media costs,PF Operational HR Costs,Linkedin Dublin,78111435277,"45,336.89",
Crown Prosecution Service ,30/11/22,Other publicity and media costs,CCD Business Centre,Linkedin Dublin,78111435277,523.78,
Crown Prosecution Service ,30/11/22,Other publicity and media costs,Proceeds of Crime Management Team,Linkedin Dublin,78111435277,"1,947.65",
Crown Prosecution Service ,30/11/22,Other publicity and media costs,Strategy and Policy,Linkedin Dublin,78111435277,"1,576.66",
Crown Prosecution Service ,30/11/22,Other publicity and media costs,RWD Management Team,Linkedin Dublin,78111435277,"1,883.92",
Crown Prosecution Service ,30/11/22,UK Hotels,PF People and Business Change,Clarity Travel Management,CPSHQ271122,"1,893.01",Y
Crown Prosecution Service ,30/11/22,UK Hotels,DID Security and Information,Clarity Travel Management,CPSHQ271122,327.54,Y
Crown Prosecution Service ,30/11/22,UK Hotels,Private Office,Clarity Travel Management,CPSHQ271122,453.00,Y
Crown Prosecution Service ,30/11/22,UK Hotels,DTUS,Clarity Travel Management,CPSHQ271122,80.01,Y
Crown Prosecution Service ,30/11/22,UK Hotels,PF Learning and Development General,Clarity Travel Management,CPSHQ271122,157.00,Y
Crown Prosecution Service ,30/11/22,UK Hotels,Central Operational Training,Clarity Travel Management,CPSHQ271122,583.80,Y
Crown Prosecution Service ,30/11/22,UK Hotels,PF Resourcing,Clarity Travel Management,CPSHQ271122,162.00,Y
Crown Prosecution Service ,30/11/22,UK Hotels,PF Analytics and Workforce Plan,Clarity Travel Management,CPSHQ271122,375.00,Y
Crown Prosecution Service ,30/11/22,UK Hotels,Permanent Transfer Costs,Clarity Travel Management,CPSHQ271122,575.01,Y
Crown Prosecution Service ,30/11/22,UK Hotels,Strategy and Policy,Clarity Travel Management,CPSHQ271122,379.80,Y
Crown Prosecution Service ,30/11/22,UK Hotels,DID Central Leadership Team,Clarity Travel Management,CPSHQ271122,257.77,Y
Crown Prosecution Service ,30/11/22,UK Hotels,Operational Business Support,Clarity Travel Management,CPSHQ271122,111.00,Y
Crown Prosecution Service ,30/11/22,UK Hotels,CFO Commercial,Clarity Travel Management,CPSHQ271122,96.60,Y
Crown Prosecution Service ,30/11/22,UK Hotels,DID Operational Process,Clarity Travel Management,CPSHQ271122,816.28,Y
Crown Prosecution Service ,30/11/22,UK Hotels,PF HR Operations,Clarity Travel Management,CPSHQ271122,493.00,Y
Crown Prosecution Service ,30/11/22,UK Hotels,DID DTS Technology,Clarity Travel Management,CPSHQ271122,"2,094.67",Y
Crown Prosecution Service ,30/11/22,UK Hotels,CFO Estates,Clarity Travel Management,CPSHQ271122,138.00,Y
Crown Prosecution Service ,30/11/22,UK Hotels,PF HR Business Partnering,Clarity Travel Management,CPSHQ271122,321.00,Y
Crown Prosecution Service ,30/11/22,UK National rail travel,Corporate Communication,Clarity Travel Management,CPSHQ271122,132.20,
Crown Prosecution Service ,30/11/22,UK National rail travel,Compliance and Assurance,Clarity Travel Management,CPSHQ271122,854.40,
Crown Prosecution Service ,30/11/22,UK National rail travel,PF People and Business Change,Clarity Travel Management,CPSHQ271122,662.25,
Crown Prosecution Service ,30/11/22,UK National rail travel,Operational Change,Clarity Travel Management,CPSHQ271122,"1,948.95",
Crown Prosecution Service ,30/11/22,UK National rail travel,PF HR Systems and Information,Clarity Travel Management,CPSHQ271122,83.40,
Crown Prosecution Service ,30/11/22,UK National rail travel,Operational Business Support,Clarity Travel Management,CPSHQ271122,641.00,
Crown Prosecution Service ,30/11/22,UK National rail travel,Central Legal Training Team,Clarity Travel Management,CPSHQ271122,346.20,
Crown Prosecution Service ,30/11/22,UK National rail travel,CFO Commercial,Clarity Travel Management,CPSHQ271122,"1,114.85",
Crown Prosecution Service ,30/11/22,UK National rail travel,DID DTS Technology,Clarity Travel Management,CPSHQ271122,"2,122.10",
Crown Prosecution Service ,30/11/22,UK National rail travel,DID DTS Change,Clarity Travel Management,CPSHQ271122,"1,518.30",
Crown Prosecution Service ,30/11/22,UK National rail travel,Central Operational Training,Clarity Travel Management,CPSHQ271122,"1,026.30",
Crown Prosecution Service ,30/11/22,UK National rail travel,PF HR Business Partnering,Clarity Travel Management,CPSHQ271122,"1,120.10",
Crown Prosecution Service ,30/11/22,UK National rail travel,Permanent Transfer Costs,Clarity Travel Management,CPSHQ271122,744.60,
Crown Prosecution Service ,30/11/22,UK National rail travel,Court Business Unit,Clarity Travel Management,CPSHQ271122,699.00,
Crown Prosecution Service ,30/11/22,UK National rail travel,DTUS,Clarity Travel Management,CPSHQ271122,130.20,
Crown Prosecution Service ,30/11/22,UK National rail travel,Strategy and Policy,Clarity Travel Management,CPSHQ271122,"3,258.70",
Crown Prosecution Service ,30/11/22,UK National rail travel,Operational Performance,Clarity Travel Management,CPSHQ271122,"1,292.30",
Crown Prosecution Service ,30/11/22,UK National rail travel,DID Central Leadership Team,Clarity Travel Management,CPSHQ271122,394.95,
Crown Prosecution Service ,30/11/22,UK National rail travel,CFO Strategic Financial Planning,Clarity Travel Management,CPSHQ271122,253.70,
Crown Prosecution Service ,30/11/22,UK National rail travel,Director of Legal Services,Clarity Travel Management,CPSHQ271122,746.70,
Crown Prosecution Service ,30/11/22,UK National rail travel,Private Office,Clarity Travel Management,CPSHQ271122,690.45,
Crown Prosecution Service ,30/11/22,UK National rail travel,Chief Finance Officer,Clarity Travel Management,CPSHQ271122,571.20,
Crown Prosecution Service ,30/11/22,UK National rail travel,DID Operational Process,Clarity Travel Management,CPSHQ271122,143.60,
Crown Prosecution Service ,30/11/22,UK National rail travel,PF Learning and Development General,Clarity Travel Management,CPSHQ271122,"1,449.20",
Crown Prosecution Service ,30/11/22,UK National rail travel,DID Security and Information,Clarity Travel Management,CPSHQ271122,"2,096.70",
Crown Prosecution Service ,30/11/22,UK National rail travel,PF HR Business Management,Clarity Travel Management,CPSHQ271122,313.30,
Crown Prosecution Service ,30/11/22,UK National rail travel,PF Analytics and Workforce Plan,Clarity Travel Management,CPSHQ271122,162.40,
Crown Prosecution Service ,30/11/22,UK National rail travel,PF Resourcing,Clarity Travel Management,CPSHQ271122,537.60,
Crown Prosecution Service ,30/11/22,UK National rail travel,PF HR Operations,Clarity Travel Management,CPSHQ271122,196.70,
Crown Prosecution Service ,30/11/22,UK Hotels,DID DTS Change,Clarity Travel Management,CPSHQ271122,687.00,Y
